[Event "Reykjavik Open 2025"]
[Site "Reykjavik"]
[Date "2025.04.14"]
[Round "8.43"]
[White "Zhou, Guijue"]
[Black "Lohia, Sohum"]
[Result "0-1"]
[Annotator "RC"]
[ECO "C58"]
[WhiteElo "2127"]
[BlackElo "2354"]
[PlyCount "110"]
[EventDate "2025.04.09"]
[EventType "swiss"]
[EventCountry "ISL"]
[SourceTitle "playchess.com"]
[Source "ChessBase"]
[SourceQuality "1"]
[TimeControl "40/5400+30:1800+30"]

1. e4 {[%emt 0:00:04]} e5 {[%emt 0:00:08]} 2. Nf3 {[%emt 0:00:05]} Nc6 {[%emt 0:00:09]} 3. Bc4 {[%emt 0:00:04]} Nf6 {[%emt 0:00:15]} 4. Ng5 {[%emt 0:00:07]} d5 {[%emt 0:01:43]} 5. exd5 {[%emt 0:00:05]} Na5 {[%emt 0:01:20]} 6. Bb5+ {[%emt 0:00:05]} Bd7 {[%emt 0:01:58]} 7. Qe2 {[%emt 0:00:14]} Be7 {[%emt 0:00:10]} 8. Nf3 {[%emt 0:05:49]} Nxd5 {[%emt 0:01:07]} 9. Bxd7+ {[%emt 0:00:45]} Qxd7 {[%emt 0:00:08]} 10. Nxe5 {[%emt 0:00:13]} Qf5 {[%emt 0:00:23]} 11. d4 {[%emt 0:02:11]} O-O-O {[%emt 0:01:54]} 12. c3 {[%emt 0:01:51]} Rhe8 {[%emt 0:08:26]} 13. O-O {[%emt 0:02:07]} Bd6 {[%emt 0:10:39]} 14. Qf3 {[%emt 0:01:53]} Qxf3 {[%emt 0:05:22]} 15. Nxf3 {[%emt 0:00:05]} Re2 {[%emt 0:24:28]} 16. g3 {[%emt 0:03:33]} Rde8 {[%emt 0:03:08]} 17. Nbd2 {[%emt 0:02:05]} f5 {[%emt 0:14:09]} 18. b4 {[%emt 0:05:25]} Nc6 {[%emt 0:00:51]} 19. Bb2 {[%emt 0:03:01]} g5 {[%emt 0:04:09]} 20. Rfd1 {[%emt 0:09:54]} g4 {[%emt 0:00:33]} 21. Ne1 {[%emt 0:00:09]} Ncxb4 {[%emt 0:05:13]} 22. c4 {[%emt 0:04:49]} Nf6 {[%emt 0:01:20]} 23. Bc3 {[%emt 0:02:21]} Nxa2 {[%emt 0:01:44]} 24. Rxa2 {[%emt 0:00:18]} Rxe1+ {[%emt 0:00:06]} 25. Rxe1 {[%emt 0:00:02]} Rxe1+ {[%emt 0:00:07]} 26. Nf1 {[%emt 0:01:02]} Rd1 {[%emt 0:06:49]} 27. Kg2 {[%emt 0:05:26]} Ne4 {[%emt 0:00:30]} 28. Ba1 {[%emt 0:00:21]} a6 {[%emt 0:02:37]} 29. Ne3 {[%emt 0:01:48]} Rb1 {[%emt 0:02:18]} 30. Nxf5 {[%emt 0:00:30]} Ng5 {[%emt 0:00:26]} 31. Nh6 {[%emt 0:01:08]} b5 {[%emt 0:02:12]} 32. c5 {[%emt 0:06:19]} Bf8 {[%emt 0:00:16]} 33. Nxg4 {[%emt 0:00:13]} Kb7 {[%emt 0:01:10]} 34. Ne5 {[%emt 0:01:01]} Bg7 {[%emt 0:00:44]} 35. f4 {[%emt 0:00:53]} Ne4 {[%emt 0:00:24]} 36. c6+ {[%emt 0:00:56]} Kb6 {[%emt 0:00:17]} 37. d5 {[%emt 0:00:29]} Bxe5 {[%emt 0:01:09]} 38. fxe5 {[%emt 0:03:04]} b4 {[%emt 0:00:35]} 39. Bd4+ {[%emt 0:02:01]} Kb5 {[%emt 0:00:07]} 40. Kf3 {[%emt 0:03:40]} Re1 {[%emt 0:00:52]} 41. Re2 {[%emt 0:34:31]} Ng5+ {[%emt 0:12:24]} 42. Kf2 {[%emt 0:00:00]} Rd1 {[%emt 0:03:45]} 43. Ke3 {[%emt 0:00:00]} Kc4 {[%emt 0:01:26]} 44. d6 {[%emt 0:00:00]} Rd3+ {[%emt 0:05:38]} 45. Kf2 {[%emt 0:00:00]} Kxd4 {[%emt 0:08:04]} 46. dxc7 {[%emt 0:00:00]} Rf3+ {[%emt 0:00:09]} 47. Kg2 {[%emt 0:00:00]} Rf8 {[%emt 0:00:09]} 48. Rd2+ {[%emt 0:00:00]} Ke3 {[%emt 0:00:08]} 49. Ra2 {[%emt 0:00:00]} Rc8 {[%emt 0:01:16]} 50. Rxa6 {[%emt 0:00:00]} Kd4 {[%emt 0:00:30]} 51. h4 {[%emt 0:00:00]} Ne6 {[%emt 0:00:10]} 52. Kf3 {[%emt 0:00:00]} Rxc7 {[%emt 0:00:39]} 53. Rb6 {[%emt 0:00:00]} Kc5 {[%emt 0:00:51]} 54. Rb7 {[%emt 0:00:00]} Rxc6 {[%emt 0:00:41]} 55. Ke4 {[%emt 0:00:00]} Rb6 {[%emt 0:00:19]} 0-1

[Event "Reykjavik Open 2025"]
[Site "Reykjavik"]
[Date "2025.04.14"]
[Round "8.44"]
[White "Burgalat, Eliot"]
[Black "Dushyant Sharma"]
[Result "0-1"]
[Annotator "RC"]
[ECO "D31"]
[WhiteElo "2119"]
[BlackElo "2313"]
[PlyCount "60"]
[EventDate "2025.04.09"]
[EventType "swiss"]
[EventCountry "ISL"]
[SourceTitle "playchess.com"]
[Source "ChessBase"]
[SourceQuality "1"]
[TimeControl "40/5400+30:1800+30"]

1. d4 {[%emt 0:00:03]} d5 {[%emt 0:01:44]} 2. c4 {[%emt 0:00:07]} e6 {[%emt 0:00:04]} 3. Nc3 {[%emt 0:00:06]} a6 {[%emt 0:07:02]} 4. Nf3 {[%emt 0:04:55]} dxc4 {[%emt 0:07:58]} 5. a4 {[%emt 0:01:14]} Bb4 {[%emt 0:11:12]} 6. e3 {[%emt 0:03:30]} Qd5 {[%emt 0:02:02]} 7. Bd2 {[%emt 0:06:44]} Bxc3 {[%emt 0:02:22]} 8. Bxc3 {[%emt 0:00:03]} b5 {[%emt 0:05:40]} 9. axb5 {[%emt 0:02:39]} axb5 {[%emt 0:00:44]} 10. Rxa8 {[%emt 0:00:53]} Qxa8 {[%emt 0:00:06]} 11. b3 {[%emt 0:29:56]} Qa3 {[%emt 0:13:53]} 12. d5 {[%emt 0:00:24]} Nf6 {[%emt 0:08:27]} 13. Bxf6 {[%emt 0:05:12]} gxf6 {[%emt 0:00:07]} 14. bxc4 {[%emt 0:00:20]} b4 {[%emt 0:11:45]} 15. Bd3 {[%emt 0:09:53]} Na6 {[%emt 0:08:37]} 16. O-O {[%emt 0:06:47]} e5 {[%emt 0:02:41]} 17. Nh4 {[%emt 0:07:24]} b3 {[%emt 0:05:28]} 18. Bf5 {[%emt 0:06:30]} Bxf5 {[%emt 0:02:00]} 19. Nxf5 {[%emt 0:00:02]} b2 {[%emt 0:01:54]} 20. d6 {[%emt 0:00:50]} Kd7 {[%emt 0:02:30]} 21. Qd5 {[%emt 0:05:33]} cxd6 {[%emt 0:00:10]} 22. Qxf7+ {[%emt 0:01:23]} Kc6 {[%emt 0:00:40]} 23. Qd5+ {[%emt 0:03:39]} Kc7 {[%emt 0:00:52]} 24. Rd1 {[%emt 0:01:36]} Rd8 {[%emt 0:02:30]} 25. Ng7 {[%emt 0:01:33]} Nc5 {[%emt 0:01:18]} 26. Nf5 {[%emt 0:01:28]} Qb3 {[%emt 0:01:08]} 27. Rb1 {[%emt 0:00:44]} Qc2 {[%emt 0:00:18]} 28. Qd1 {[%emt 0:00:31]} Qxd1+ {[%emt 0:00:19]} 29. Rxd1 {[%emt 0:00:01]} Ra8 {[%emt 0:00:05]} 30. Nxd6 {[%emt 0:00:22]} Ra1 {[%emt 0:00:08]} 0-1

[Event "Reykjavik Open 2025"]
[Site "Reykjavik"]
[Date "2025.04.15"]
[Round "9.1"]
[White "Gupta, Abhijeet"]
[Black "Maghsoodloo, Parham"]
[Result "1/2-1/2"]
[Annotator "TA"]
[ECO "D37"]
[WhiteElo "2576"]
[BlackElo "2684"]
[PlyCount "38"]
[EventDate "2025.04.09"]
[EventType "swiss"]
[EventCountry "ISL"]
[SourceTitle "playchess.com"]
[Source "ChessBase"]
[SourceQuality "1"]
[TimeControl "40/5400+30:1800+30"]

{[%evp 9,38,12,9,22,28,25,31,25,38,34,37,18,6,-20,2,12,10,0,3,-14,8,0,0,0,0,0,7,0,0,0,0]} 1. d4 {[%emt 0:00:07]} Nf6 {[%emt 0:00:08]} 2. c4 {[%emt 0:00:04]} e6 {[%emt 0:00:07]} 3. Nf3 {[%emt 0:00:09]} d5 {[%emt 0:00:05]} 4. Nc3 {[%emt 0:00:15]} Nbd7 {[%emt 0:00:06]} 5. Qc2 {[%emt 0:00:42]} dxc4 {[%emt 0:03:06]} 6. e4 {[%emt 0:02:01][%cal Be2e4,Be4e5][%mdl 32] D37: Queen's Gambit Declined: 5 Bf4.} Nb6 {[%emt 0:00:06]} 7. Be3 {[%emt 0:00:25][%mdl 1024] White has compensation.} Bd7 {[%emt 0:01:51]} 8. Be2 {[%emt 0:05:34] White is slightly better.} Ng4 $146 {[%emt 0:04:12]} (8... Bb4 9. Ne5 Qe7 10. a4 a5 11. O-O O-O 12. Bg5 Qd6 13. Rfd1 Bxc3 14. bxc3 Bxa4 15. Rxa4 Nxa4 16. Bxf6 gxf6 {½-½ Wilhelmi,D (2454)-Rakhorst,W (2492) ICCF GMN/032 email 2011}) 9. Bf4 {[%emt 0:04:44]} Bd6 {[%emt 0:42:29]} 10. e5 {[%emt 0:07:48]} Be7 {[%emt 0:00:48] The position is equal.} 11. Nd2 {[%emt 0:04:13]} h5 {[%emt 0:06:06]} 12. h3 {[%emt 0:02:16]} (12. Bxc4 Bc6 13. Qd3 g5 $17 (13... Bxg2 14. Rg1 $17)) 12... Nh6 {[%emt 0:00:48]} 13. Nxc4 {[%emt 0:00:25]} (13. Bxh5 $2 Nf5 14. Bf3 Nxd4 $19) 13... Bc6 {[%emt 0:01:22][%csl LRd4,LRg2]} 14. O-O-O {[%emt 0:05:19]} (14. Rd1 $5) 14... Nd5 {[%emt 0:02:51] Wards off Ne3} 15. Nxd5 {[%emt 0:05:09]} (15. Bxh6 {simplifies} Nxc3 16. Qxc3 Rxh6 17. Ne3) 15... Qxd5 {[%emt 0:03:52]} 16. Bf3 {[%emt 0:17:41]} Qb5 {[%emt 0:02:13]} 17. Be2 {[%emt 0:01:44]} ({Reject} 17. Bxh5 Bxg2 (17... Nf5 18. Be2 $16) 18. Rhg1 Qc6 $15) 17... Qd5 {[%emt 0:00:00]} 18. Bf3 {[%emt 0:00:12]} Qb5 {[%emt 0:06:10]} 19. Be2 {[%emt 0:07:22]} Qd5 {[%emt 0:00:19] Prevents Nd6+.   Weighted Error Value: White=0.07 (flawless) /Black=0.05 (flawless)   Inaccurate:     	White=1     	---        OK:         	White=2     	Black=9} 1/2-1/2

[Event "Reykjavik Open 2025"]
[Site "Reykjavik"]
[Date "2025.04.15"]
[Round "9.2"]
[White "Amar, Elham"]
[Black "Lu, Shanglei"]
[Result "1/2-1/2"]
[Annotator "TA"]
[ECO "B86"]
[WhiteElo "2546"]
[BlackElo "2618"]
[PlyCount "88"]
[EventDate "2025.04.09"]
[EventType "swiss"]
[EventCountry "ISL"]
[SourceTitle "playchess.com"]
[Source "ChessBase"]
[SourceQuality "1"]
[TimeControl "40/5400+30:1800+30"]

{[%evp 13,88,18,13,0,0,0,0,0,0,-16,-1,-8,7,12,14,20,18,4,0,0,82,74,81,67,46,69,35,28,95,85,88,16,23,25,22,16,27,23,79,78,470,245,257,252,252,229,221,170,187,0,207,168,172,164,174,133,134,154,176,109,103,79,83,14,7,0,0,0,0,0,0,0,0,0,0,0,0]} 1. e4 {[%emt 0:00:03]} c5 {[%emt 0:01:08]} 2. Nf3 {[%emt 0:00:14]} d6 {[%emt 0:00:33]} 3. d4 {[%emt 0:00:08]} cxd4 {[%emt 0:00:38]} 4. Nxd4 {[%emt 0:00:10]} Nf6 {[%emt 0:00:06]} 5. Nc3 {[%emt 0:00:06]} a6 {[%emt 0:00:31]} 6. Bc4 {[%emt 0:00:08]} e6 {[%emt 0:00:05]} 7. Be3 {[%emt 0:00:06]} Be7 {[%emt 0:00:47]} 8. a3 {[%emt 0:00:57] B86: Sicilian Scheveningen/Najdorf: 6 Bc4, without early ...b5.} O-O {[%emt 0:13:25]} 9. f3 {[%emt 0:05:10]} b5 {[%emt 0:08:13]} 10. Bb3 {[%emt 0:00:20]} Bb7 {[%emt 0:00:34]} 11. h4 {[%emt 0:00:08][%cal Bh2h4,Bh4h5,Bh5h6,Bh6h7][%mdl 32]} Nbd7 {[%emt 0:12:42][%cal Bb8d7,Bd7e5,Be5c4][%mdl 32]} 12. Qd2 {[%emt 0:00:36]} Ne5 {[%emt 0:03:46]} 13. O-O-O {[%emt 0:02:37]} Rc8 {[%emt 0:22:29]} 14. g4 {[%emt 0:00:29]} Nc4 $146 {[%emt 0:00:35]} (14... d5 15. h5 dxe4 16. g5 Nd5 17. Nxd5 Bxd5 18. g6 Bxb3 19. h6 fxg6 20. hxg7 Rxf3 {1-0 Tasev,D (2188)-Vivas Zamora,F (2336) Titled Tuesday intern op 25th Oct Early blitz 2022 (10)}) 15. Bxc4 {[%emt 0:09:55]} Rxc4 {[%emt 0:00:03]} 16. h5 {[%emt 0:09:46]} h6 {[%emt 0:00:05]} (16... Nd7 $11) 17. g5 $16 {[%emt 0:10:09]} hxg5 {[%emt 0:00:23]} 18. h6 {[%emt 0:00:30] Hoping for hxg7.} (18. Bxg5 {simplifies} d5 19. e5 Nd7 20. Bxe7 Qxe7 21. f4) 18... g6 {[%emt 0:00:47][%csl Oh6] White has a strong passed pawn} 19. h7+ $1 {[%emt 0:05:19]} Kh8 $1 {[%emt 0:00:08]} (19... Nxh7 20. Qh2 Kg7 21. Qxh7+ Kf6 22. Bxg5+ Kxg5 23. Qh4#) 20. Bxg5 {[%emt 0:00:11]} Rc5 {[%emt 0:07:57]} (20... Re8 $11) 21. Bh6 $1 $36 {[%emt 0:09:33][%mdl 2048] Black is under strong pressure. White is more active.} Re8 {[%emt 0:00:04][%cal Oc5h5]} 22. Nde2 {[%emt 0:00:36] Some like it hot} (22. Nce2 $16) 22... Rh5 {[%emt 0:03:31]} 23. Nf4 {[%emt 0:04:31]} Rxh1 {[%emt 0:00:04]} 24. Rxh1 {[%emt 0:00:03]} Nd7 {[%emt 0:01:44][%cal Od7e5]} 25. Nh3 $1 {[%emt 0:04:14]} Kxh7 {[%emt 0:13:40]} (25... Bf6 $11 {remains equal.}) 26. Nf4 {[%emt 0:25:02]} Bh4 $2 {[%emt 0:00:40][%mdl 8192] [#]} (26... Bf6 $16 {is a better chance.}) 27. Nxe6 $1 {[%emt 0:02:18][%mdl 512]} Rxe6 $18 {[%emt 0:01:28]} 28. Bg5 {[%emt 0:00:03]} Qf8 {[%emt 0:01:59]} 29. Rxh4+ {[%emt 0:01:54]} Kg8 {[%emt 0:00:01]} 30. Bh6 {[%emt 0:03:19]} Qd8 {[%emt 0:01:11]} 31. Bg5 {[%emt 0:00:10]} Qf8 {[%emt 0:00:03]} 32. Qd4 {[%emt 0:00:40]} f6 {[%emt 0:00:34][%cal Od7e5,Bf7f6,Bf6f5][%mdl 32]} 33. Be3 {[%emt 0:00:28]} Ne5 {[%emt 0:00:51]} 34. Qd1 {[%emt 0:00:17]} f5 {[%emt 0:00:50]} 35. f4 {[%emt 0:05:07]} Qe7 {[%emt 0:02:43] [#]} 36. Rh1 {[%emt 0:01:28]} (36. Qh1 $6 Nf7 $14) (36. Rh3 $1 $18 Nf7 37. Qg1 Bxe4 38. Nxe4 Rxe4 39. Qxg6+ Kf8 40. Qg1) 36... Nf7 $16 {[%emt 0:00:28] Black is weak on the dark squares} 37. Rg1 {[%emt 0:00:44]} (37. Nd5 {is interesting.} Bxd5 38. Qxd5 Rxe4 39. Bd2) 37... Kf8 {[%emt 0:00:37]} (37... Bxe4 $2 38. Nxe4 Kf8 39. Nc3 Rxe3 40. Nd5 $18 (40. Rxg6 $2 {too greedy.} Re1 $19)) 38. Nd5 {[%emt 0:01:20]} (38. Rg3 $16) 38... Qh4 $1 $11 {[%emt 0:02:10] The position is equal.} (38... Bxd5 39. Qxd5 Qd7 (39... Rxe4 40. Bd2 $16) 40. Qa8+ (40. exf5 Rxe3 41. fxg6 Qe6 $14) 40... Qe8 41. Qxa6) 39. exf5 {[%emt 0:00:38]} gxf5 {[%emt 0:00:02] and ...Bxd5 would now be decisive} 40. Bb6 {[%emt 0:00:29]} Bxd5 {[%emt 0:01:18]} 41. Qxd5 {[%emt 0:30:03]} Re1+ {[%emt 0:05:26]} 42. Rxe1 {[%emt 0:00:00]} Qxe1+ {[%emt 0:00:03]} 43. Qd1 {[%emt 0:00:00]} Qe4 {[%emt 0:00:12]} 44. Qd2 {[%emt 0:00:00]} Qh1+ {[%emt 0:04:43] Black defended with fortune.   Weighted Error Value: White=0.31/Black=0.25 (precise)   Loses game:     	---       	Black=1      Mistake:       	White=4     	Black=3      OK:         	White=10    	Black=18     Best:        	White=2     	Black=3      Strong:       	White=3     	Black=2} 1/2-1/2

[Event "Reykjavik Open 2025"]
[Site "Reykjavik"]
[Date "2025.04.15"]
[Round "9.3"]
[White "Ivanchuk, Vasyl"]
[Black "Cornette, Matthieu"]
[Result "1/2-1/2"]
[Annotator "TA"]
[ECO "C64"]
[WhiteElo "2604"]
[BlackElo "2528"]
[PlyCount "39"]
[EventDate "2025.04.09"]
[EventType "swiss"]
[EventCountry "ISL"]
[SourceTitle "playchess.com"]
[Source "ChessBase"]
[SourceQuality "1"]
[TimeControl "40/5400+30:1800+30"]

{[%evp 10,39,32,34,42,34,42,31,34,16,18,26,8,6,14,10,47,0,19,-2,27,-5,-8,-26,-26,-61,-57,-59,-47,-58,-64,-49]} 1. e4 {[%emt 0:00:01]} e5 {[%emt 0:00:12]} 2. Nf3 {[%emt 0:00:09]} Nc6 {[%emt 0:00:07]} 3. Bb5 {[%emt 0:00:04]} a6 {[%emt 0:00:13]} 4. Ba4 {[%emt 0:00:05]} Bc5 {[%emt 0:00:52]} 5. c3 {[%emt 0:01:13]} Nge7 {[%emt 0:00:25]} 6. O-O {[%emt 0:13:22]} Ba7 {[%emt 0:03:35]} 7. d4 {[%emt 0:00:06]} Ng6 {[%emt 0:00:08]} 8. Be3 {[%emt 0:07:47]} O-O {[%emt 0:01:01] White is slightly better.} 9. d5 {[%emt 0:00:11]} Bxe3 {[%emt 0:06:37]} 10. fxe3 {[%emt 0:01:45]} Na5 {[%emt 0:05:20]} 11. Nbd2 {[%emt 0:02:44]} b6 {[%emt 0:01:41]} 12. Qe1 {[%emt 0:05:25]} d6 {[%emt 0:07:06]} 13. h4 {[%emt 0:02:57]} (13. b4 $14 Nb7 14. a3) 13... f6 {[%emt 0:20:14]} 14. Qg3 {[%emt 0:20:42]} Nh8 {[%emt 0:08:33]} 15. Rf2 {[%emt 0:07:26]} Nf7 {[%emt 0:03:16]} 16. Raf1 {[%emt 0:00:02]} Nb7 {[%emt 0:03:09][%cal Ba5b7,Bb7c5,Bc5d3][%mdl 32]} 17. h5 {[%emt 0:05:35]} Nc5 {[%emt 0:02:37] Black is slightly better.} 18. Bc6 {[%emt 0:01:47]} Ra7 {[%emt 0:05:06]} 19. b4 {[%emt 0:02:20]} Nd3 {[%emt 0:07:15]} 20. Re2 {[%emt 0:01:20] Weighted Error Value: White=0.15 (very precise) /Black=0.07 (flawless) .  Mistake:       	White=1     	---        Inaccurate:     	White=2     	Black=2      OK:         	White=2     	Black=7      Best:        	White=1     	---} 1/2-1/2

[Event "Reykjavik Open 2025"]
[Site "Reykjavik"]
[Date "2025.04.15"]
[Round "9.4"]
[White "Safarli, Eltaj"]
[Black "Muradli, Mahammad"]
[Result "1/2-1/2"]
[Annotator "TA"]
[ECO "B50"]
[WhiteElo "2617"]
[BlackElo "2588"]
[PlyCount "40"]
[EventDate "2025.04.09"]
[EventType "swiss"]
[EventCountry "ISL"]
[SourceTitle "playchess.com"]
[Source "ChessBase"]
[SourceQuality "1"]
[TimeControl "40/5400+30:1800+30"]

{[%evp 18,23,14,18,16,12,0,-13]} 1. e4 {[%emt 0:00:10]} c5 {[%emt 0:01:06]} 2. Nf3 {[%emt 0:00:11]} d6 {[%emt 0:00:07]} 3. c3 {[%emt 0:00:35]} Nf6 {[%emt 0:01:15]} 4. h3 {[%emt 0:00:17]} Nc6 {[%emt 0:03:28]} 5. Bd3 {[%emt 0:00:20]} g6 {[%emt 0:00:44]} 6. Bc2 {[%emt 0:01:15]} e5 {[%emt 0:00:22]} 7. O-O {[%emt 0:00:13]} Bg7 {[%emt 0:00:21]} 8. d4 {[%emt 0:00:12]} exd4 {[%emt 0:02:29]} 9. cxd4 {[%emt 0:00:05]} cxd4 {[%emt 0:01:44]} 10. Nxd4 {[%emt 0:00:47] The position is equal.} O-O {[%emt 0:00:06] B50: Sicilian: 2...d6, Miscellaneous.} 11. Nc3 {[%emt 0:00:06]} d5 {[%emt 0:10:33]} 12. Nxc6 {[%emt 0:00:26] Not much happened in this game.   OK:         	White=1     	---} bxc6 $146 13. e5 Nd7 14. f4 f6 15. e6 Nc5 16. f5 gxf5 17. Bxf5 Bxe6 18. Be3 Bxf5 19. Bxc5 Bg6 20. Bxf8 Qb6+ {½-½ Abasov,N (2634)-Vakhidov,J (2607) Sharjah Masters 6th 2023 (9)} 1/2-1/2

[Event "Reykjavik Open 2025"]
[Site "Reykjavik"]
[Date "2025.04.15"]
[Round "9.5"]
[White "Hjartarson, Johann"]
[Black "Ivic, Velimir"]
[Result "0-1"]
[Annotator "TA"]
[ECO "D43"]
[WhiteElo "2461"]
[BlackElo "2623"]
[PlyCount "58"]
[EventDate "2025.04.09"]
[EventType "swiss"]
[EventCountry "ISL"]
[SourceTitle "playchess.com"]
[Source "ChessBase"]
[SourceQuality "1"]
[TimeControl "40/5400+30:1800+30"]

{[%evp 12,58,25,0,0,0,8,0,0,0,27,-3,7,-14,-4,-41,-24,-30,-37,-65,-80,-55,-53,-45,-38,-77,-77,-218,-192,-206,-193,-208,-195,-292,-281,-293,-298,-288,-287,-381,-331,-306,-312,-417,-416,-415,-418,-406,-367]} 1. d4 {[%emt 0:00:04]} Nf6 {[%emt 0:00:17]} 2. c4 {[%emt 0:00:07]} e6 {[%emt 0:00:05]} 3. Nf3 {[%emt 0:02:03]} d5 {[%emt 0:00:25]} 4. Nc3 {[%emt 0:00:11]} c6 {[%emt 0:00:33]} 5. Bg5 {[%emt 0:05:45]} h6 {[%emt 0:00:16]} 6. Bxf6 {[%emt 0:00:15]} Qxf6 {[%emt 0:00:06]} 7. Qb3 {[%emt 0:00:57]} Qe7 {[%emt 0:02:13]} 8. e3 {[%emt 0:07:00]} g6 {[%emt 0:03:06]} 9. Be2 {[%emt 0:08:26]} Bg7 {[%emt 0:01:13] The position is equal.} 10. O-O {[%emt 0:00:11]} O-O {[%emt 0:00:32]} 11. Rad1 {[%emt 0:01:22]} Nd7 {[%emt 0:02:08]} 12. a3 {[%emt 0:01:56]} a6 {[%emt 0:11:49]} 13. e4 {[%emt 0:12:04]} dxc4 {[%emt 0:02:30]} 14. Qxc4 {[%emt 0:01:15]} c5 {[%emt 0:00:45]} 15. d5 {[%emt 0:06:52]} b5 {[%emt 0:01:16]} 16. Qd3 {[%emt 0:00:31]} Rd8 {[%emt 0:14:11]} 17. dxe6 {[%emt 0:06:27]} Qxe6 {[%emt 0:03:37]} 18. Nd5 {[%emt 0:00:45] [#]} Rb8 $1 $36 {[%emt 0:01:36][%cal Oc8b7][%mdl 2048] Black is on the roll.} (18... Bxb2 19. Nc7 Qc6 (19... c4 20. Qd2 $18) 20. Nxa8 Qxa8 21. e5 $14) 19. e5 {[%emt 0:06:55] This costs White the game.} Bb7 $19 {[%emt 0:03:07]} (19... Bxe5 20. Nxe5 Qxe5 (20... Nxe5 $2 21. Ne7+ Qxe7 22. Qxd8+ Qf8 23. Qc7 $18) 21. f4 Qxb2 22. f5 $14) (19... Nxe5 20. Ne7+ Qxe7 21. Qxd8+ Bf8 22. Rfe1 $14) 20. Nf4 {[%emt 0:01:41]} Qe8 {[%emt 0:04:32]} 21. e6 {[%emt 0:01:48]} Nf8 {[%emt 0:05:07]} (21... fxe6 22. Qd6 $17) 22. exf7+ {[%emt 0:04:18]} (22. Qe3 $142 Nxe6 23. Nxe6 Qxe6 24. Qxe6 fxe6 25. b3) 22... Qxf7 {[%emt 0:00:12]} 23. Qe3 {[%emt 0:00:38]} Re8 {[%emt 0:02:27]} ({Don't do} 23... Bxb2 24. Nd3 (24. Ne5 $2 Bxe5 25. Qxe5 Re8 $19) 24... Re8 (24... Bxa3 25. Nde5 $15) 25. Qd2 Bxa3 26. Ra1 $17) 24. Qd2 {[%emt 0:00:10]} c4 {[%emt 0:01:57][%cal Ob8d8]} 25. h4 {[%emt 0:05:57]} Re4 {[%emt 0:01:04]} 26. Nh3 {[%emt 0:00:16]} Rbe8 {[%emt 0:02:43]} 27. Rde1 {[%emt 0:00:57]} Qf6 {[%emt 0:01:53] Black is winning.} 28. Bd1 {[%emt 0:01:57]} Qxb2 {[%emt 0:00:54]} 29. Rxe4 {[%emt 0:00:18]} Bxe4 {[%emt 0:00:58] Weighted Error Value: White=0.31/Black=0.05 (flawless) .  Mistake:       	White=2     	---        Inaccurate:     	White=6     	Black=1      OK:         	White=8     	Black=10     Best:        	---       	Black=1      Strong:       	---       	Black=1} 0-1

[Event "Reykjavik Open 2025"]
[Site "Reykjavik"]
[Date "2025.04.15"]
[Round "9.6"]
[White "Royal, Shreyas"]
[Black "Banusz, Tamas"]
[Result "1/2-1/2"]
[Annotator "TA"]
[ECO "D25"]
[WhiteElo "2465"]
[BlackElo "2592"]
[PlyCount "35"]
[EventDate "2025.04.09"]
[EventType "swiss"]
[EventCountry "ISL"]
[SourceTitle "playchess.com"]
[Source "ChessBase"]
[SourceQuality "1"]
[TimeControl "40/5400+30:1800+30"]

{[%evp 12,35,32,38,33,35,31,39,33,22,25,25,27,39,56,53,46,0,0,0,56,0,0,0,47,0]} 1. d4 {[%emt 0:00:02]} d5 {[%emt 0:00:12]} 2. c4 {[%emt 0:00:07]} dxc4 {[%emt 0:00:08]} 3. Nf3 {[%emt 0:00:06]} Nf6 {[%emt 0:00:04]} 4. e3 {[%emt 0:00:05]} Bg4 {[%emt 0:00:05][%cal Bc8g4,Bg4h5,Bh5g6][%mdl 32]} 5. Bxc4 {[%emt 0:00:59]} e6 {[%emt 0:00:05]} 6. h3 {[%emt 0:01:25]} Bh5 {[%emt 0:00:08]} 7. Nc3 {[%emt 0:00:33]} Nc6 {[%emt 0:00:23]} 8. O-O {[%emt 0:03:52]} Bd6 {[%emt 0:00:29]} 9. Re1 {[%emt 0:06:20]} O-O {[%emt 0:01:21]} 10. g4 {[%emt 0:02:08]} Bg6 {[%emt 0:00:06]} 11. e4 {[%emt 0:00:10]} Bb4 {[%emt 0:00:11]} 12. Bg5 {[%emt 0:05:09] [#] aiming for e5.} h6 {[%emt 0:00:08]} 13. Bh4 {[%emt 0:01:26] Black must now prevent e5.} Be7 {[%emt 0:00:04][%cal Of6e4]} 14. Bg3 {[%emt 0:05:16]} (14. Bxf6 $14 Bxf6 15. e5) 14... Bb4 $11 {[%emt 0:00:31]} 15. Bh4 {[%emt 0:00:43]} (15. Qd3 $11) 15... Be7 $1 $14 {[%emt 0:00:04][%cal Of6e4]} 16. Bg3 {[%emt 0:14:17]} (16. Bxf6 $14 Bxf6 17. e5) 16... Bb4 $11 {[%emt 0:00:41]} 17. Bh4 {[%emt 0:16:46]} (17. Qd3 $11 {feels stronger.}) 17... Be7 $1 $14 {[%emt 0:00:13][%cal Of6e4]} 18. Bg3 {[%emt 0:00:05] Weighted Error Value: White=0.10 (very precise) /Black=0.02 (flawless) .  Mistake:       	White=5     	---        OK:         	White=4     	Black=4      Best:        	---       	Black=2      Strong:       	---       	Black=2} (18. d5 $14 exd5 19. Nxd5 (19. exd5 Nxd5 20. Nxd5 Bxh4 $11)) 1/2-1/2